bitfinex/quotes_BTCUSD_20220306
["timestamp","ask_amount","ask_price","bid_price","bid_amount"]
[1646554871496,0.59722781,39335.0,39334.0,0.00021957]
[1646554871697,0.47883758,39335.0,39334.0,0.00021957]
[1646554871996,0.47883758,39335.0,39331.0,0.20845214]
[1646554872200,0.47883758,39335.0,39333.0,0.00021955]
[1646554872597,0.382254,39334.0,39333.0,0.00021955]
[1646554872799,0.0509,39334.0,39333.0,0.00021955]
[1646554873197,0.0509,39334.0,39330.0,0.20845214]
[1646554873498,0.0509,39334.0,39332.0,0.00021955]
[1646554874355,0.0509,39334.0,39330.0,0.20845214]
[1646554874559,0.0509,39334.0,39331.0,0.00021955]
[1646554875558,0.0509,39334.0,39329.0,0.20845214]
[1646554875758,0.0509,39334.0,39331.0,0.00021955]
[1646554876760,0.0509,39334.0,39329.0,0.20845214]
[1646554876958,0.0509,39334.0,39331.0,0.00021955]
[1646554878004,0.0509,39334.0,39328.0,0.20845214]
[1646554878204,0.0509,39334.0,39331.0,0.00021955]
[1646554879207,0.0509,39334.0,39332.0,0.382254]
[1646554879406,0.1139,39338.0,39332.0,0.382254]
[1646554879605,0.1139,39338.0,39331.0,0.00021955]
[1646554879606,0.3,39339.0,39331.0,0.00021955]
[1646554880008,0.20728203,39337.0,39331.0,0.00021955]
[1646554880408,0.20728203,39337.0,39329.0,0.20845214]
[1646554880607,0.20728203,39337.0,39333.0,0.00021955]
[1646554881007,0.50243367,39339.0,39333.0,0.00021955]
[1646554881209,0.25794431,39341.0,39333.0,0.00021955]
[1646554881409,0.3,39340.0,39333.0,0.00021955]
[1646554881658,0.0509,39341.0,39334.0,0.00021954]
[1646554881862,0.3509,39341.0,39334.0,0.00021954]
[1646554882061,0.20110319,39339.0,39334.0,0.00021954]
[1646554882261,0.20110319,39339.0,39334.0,0.18899455]
[1646554882461,0.3,39340.0,39334.0,0.18899455]
[1646554882664,0.16954718,39341.0,39334.0,0.18877501]
[1646554883262,0.382254,39340.0,39331.0,0.301]
[1646554883463,0.16954718,39341.0,39331.0,0.001]
[1646554883663,0.21213672,39338.0,39331.0,0.001]
[1646554884263,0.21213672,39338.0,39331.0,0.301]
[1646554884564,0.21213672,39338.0,39332.0,0.15883501]
[1646554886600,0.21213672,39338.0,39333.0,0.00023533]
[1646554887302,0.16954718,39341.0,39333.0,0.00023533]
[1646554887500,0.16954718,39341.0,39332.0,0.15883501]
[1646554887704,0.16954718,39341.0,39334.0,0.00023533]
[1646554888402,0.682254,39340.0,39334.0,0.00023533]
[1646554888602,0.3,39340.0,39334.0,0.00023533]
[1646554888802,0.19583591,39333.0,39331.0,0.20845214]
[1646554889004,0.3,39340.0,39334.0,0.00023533]
[1646554889005,0.0509,39335.0,39334.0,0.00023533]
[1646554889256,0.433154,39335.0,39334.0,0.00023533]
[1646554889455,0.58806046,39335.0,39334.0,0.00023533]
[1646554889854,0.79678831,39335.0,39329.0,0.20845214]
[1646554890055,0.79678831,39335.0,39333.0,0.00023534]
[1646554890056,0.41453431,39335.0,39333.0,0.00023534]
[1646554890259,0.382254,39334.0,39333.0,0.00023534]
[1646554891057,0.682254,39334.0,39328.0,0.20845214]
[1646554891256,0.3,39334.0,39332.0,0.00022648]
[1646554891456,0.382254,39333.0,39332.0,0.00022648]
[1646554891655,0.3,39334.0,39332.0,0.00022648]
[1646554891955,0.382254,39333.0,39332.0,0.00022648]
[1646554892359,0.16113694,39329.0,39328.0,0.20845214]
[1646554896008,0.16106265,39329.0,39328.0,0.20845214]
[1646554901113,0.16973341,39333.0,39328.0,0.20845214]
[1646554902113,0.16973341,39333.0,39329.0,0.00021961]
[1646554903114,0.16973341,39333.0,39328.0,0.20845214]
[1646554903115,0.16973341,39333.0,39328.0,0.21245214]
[1646554903318,0.16973341,39333.0,39329.0,0.00021961]
[1646554904359,0.16973341,39333.0,39328.0,0.21245214]
[1646554904360,0.16973341,39333.0,39328.0,0.20845214]
[1646554904560,0.16973341,39333.0,39329.0,0.00021961]
[1646554904765,0.16973341,39333.0,39329.0,0.20867175]
[1646554904962,0.1133,39339.0,39329.0,0.20867175]
[1646554905162,0.001,39337.0,39330.0,0.3]
[1646554905363,0.001,39337.0,39331.0,0.382254]
[1646554905565,0.001,39337.0,39333.0,0.382254]
[1646554905762,0.001,39337.0,39333.0,0.56525781]
[1646554905964,0.001,39337.0,39333.0,0.382254]
[1646554906161,0.001,39337.0,39334.0,0.17439936]
[1646554906363,0.17113919,39340.0,39335.0,0.382254]
[1646554906562,0.3829062,39342.0,39334.0,0.17439936]
[1646554906963,0.3829062,39342.0,39334.0,0.17461895]
[1646554907563,0.20495267,39340.0,39334.0,0.17461895]
[1646554908010,0.20495267,39340.0,39334.0,0.17439936]
[1646554908208,0.20495267,39340.0,39334.0,0.17461895]
[1646554909106,0.20495267,39340.0,39334.0,0.17439936]
[1646554909306,0.20495267,39340.0,39334.0,0.17461895]
[1646554910709,0.3829062,39342.0,39334.0,0.17461895]
[1646554910910,0.17586189,39342.0,39334.0,0.17461895]
[1646554911110,0.3829062,39342.0,39334.0,0.17461895]
[1646554911510,0.3829062,39342.0,39334.0,0.17439936]
[1646554911761,0.17586189,39342.0,39334.0,0.38307109]
[1646554911959,0.3829062,39342.0,39334.0,0.17461895]
[1646554912559,0.17586189,39342.0,39334.0,0.38307109]
[1646554912758,0.18328432,39340.0,39334.0,0.3828515]
[1646554912958,0.18328432,39340.0,39334.0,0.38307109]
[1646554913964,0.18328432,39340.0,39334.0,0.3828515]
[1646554914162,0.18328432,39340.0,39334.0,0.38307109]
[1646554914362,0.3829062,39342.0,39334.0,0.38307109]
[1646554914763,0.17586189,39342.0,39334.0,0.38307109]
[1646554914964,0.3829062,39342.0,39334.0,0.38307109]
[1646554915164,0.3829062,39342.0,39334.0,0.3828515]
[1646554915413,0.3829062,39342.0,39334.0,0.38307109]
[1646554915813,0.3829062,39342.0,39335.0,0.20845214]
[1646554917114,0.3829062,39342.0,39334.0,0.38307109]
[1646554917514,0.3829062,39342.0,39334.0,0.3828515]
[1646554917714,0.3829062,39342.0,39334.0,0.38307109]
[1646554917914,0.20704431,39341.0,39334.0,0.20867173]
[1646554918515,0.20704431,39341.0,39334.0,0.00021959]
[1646554918715,0.20704431,39341.0,39333.0,0.20845214]
[1646554918919,0.20704431,39341.0,39334.0,0.00021959]
[1646554919760,0.17947545,39338.0,39334.0,0.00021959]
[1646554920057,0.20704431,39341.0,39334.0,0.00021959]
[1646554920259,0.17686189,39342.0,39334.0,0.00021959]
[1646554920458,0.20695363,39341.0,39334.0,0.00021959]
[1646554920958,0.21269536,39340.0,39334.0,0.00021959]
[1646554921157,0.20695363,39341.0,39333.0,0.20942217]
[1646554921363,0.20695363,39341.0,39334.0,0.00021959]
[1646554922163,0.25869204,39343.0,39334.0,0.00021959]
[1646554922164,0.20695363,39343.0,39335.0,0.382254]
[1646554922361,0.00405116,39345.0,39336.0,0.50842217]
[1646554923403,0.21848614,39345.0,39337.0,0.15690489]
[1646554923603,0.17076073,39345.0,39338.0,0.48056905]
[1646554924407,0.17076073,39345.0,39338.0,0.18056905]
[1646554925004,0.21471094,39344.0,39338.0,0.18056905]
[1646554926406,0.17076073,39345.0,39338.0,0.18056905]
[1646554928561,0.37853531,39345.0,39337.0,0.302]
[1646554928762,0.37853531,39345.0,39337.0,0.002]
[1646554929162,0.37853531,39345.0,39335.0,0.3]
[1646554929361,0.37853531,39345.0,39334.0,0.30021135]
[1646554929565,0.1589715,39339.0,39333.0,0.003]
[1646554929762,0.1589715,39339.0,39334.0,0.54582532]
[1646554930063,0.1589715,39339.0,39335.0,0.3]
[1646554930261,0.1589715,39339.0,39336.0,0.382254]
[1646554930505,0.1589715,39339.0,39334.0,0.00021135]
[1646554930707,0.1589715,39339.0,39333.0,0.3]
[1646554931008,0.1589715,39339.0,39334.0,0.00022017]
[1646554931207,0.2627432,39345.0,39342.0,0.10912222]
[1646554931411,0.21861429,39343.0,39342.0,0.10912222]
[1646554931605,0.60086829,39343.0,39342.0,0.10912222]
[1646554932005,0.76258312,39343.0,39342.0,0.10912222]
[1646554933310,0.96957913,39343.0,39342.0,0.10912222]
[1646554934959,0.20699601,39343.0,39342.0,0.10912222]
[1646554935161,0.20699601,39344.0,39342.0,0.10912222]
[1646554935860,0.382254,39343.0,39342.0,0.10912222]
[1646554936061,0.17879592,39343.0,39342.0,0.10912222]
[1646554936461,0.20699601,39344.0,39342.0,0.10912222]
[1646554936661,0.382254,39343.0,39342.0,0.10912222]
[1646554937265,0.58925001,39343.0,39342.0,0.10912222]
[1646554937662,0.80154738,39343.0,39342.0,0.10912222]
[1646554938611,0.59455137,39343.0,39342.0,0.10912222]
[1646554939212,0.21229737,39343.0,39342.0,0.10912222]
[1646554939412,0.59455137,39343.0,39342.0,0.10912222]
[1646554941514,0.21229737,39343.0,39342.0,0.10912222]
[1646554941754,0.59455137,39343.0,39342.0,0.10912222]
[1646554941957,0.382254,39343.0,39342.0,0.10912222]
[1646554942561,0.20699601,39345.0,39342.0,0.10912222]
[1646554945606,0.20699601,39344.0,39342.0,0.10912222]
[1646554946008,0.20699601,39345.0,39342.0,0.10912222]
[1646554946409,0.382254,39344.0,39342.0,0.10912222]
[1646554946609,0.20699601,39345.0,39342.0,0.10912222]
[1646554946810,0.382254,39344.0,39342.0,0.10912222]
[1646554947012,0.20699601,39345.0,39342.0,0.10912222]
[1646554948014,0.20699601,39344.0,39342.0,0.10912222]
[1646554948213,0.20699601,39345.0,39342.0,0.10912222]
[1646554949758,0.20699601,39345.0,39344.0,0.18958983]
[1646554949962,0.20699601,39345.0,39344.0,0.87176883]
[1646554950165,0.20699601,39348.0,39345.0,0.382166]
[1646554950360,0.20699601,39348.0,39344.0,0.18958983]
[1646554950560,0.20699601,39348.0,39345.0,0.382164]
[1646554950760,0.20699601,39348.0,39344.0,0.18958983]
[1646554950961,0.19199601,39348.0,39344.0,0.18958983]
[1646554951562,0.19199601,39348.0,39345.0,0.382164]
[1646554951766,0.004,39349.0,39342.0,0.27855769]
[1646554951962,0.004,39349.0,39343.0,0.382183]
[1646554952160,0.004,39349.0,39342.0,0.10912222]
[1646554952362,0.004,39349.0,39342.0,0.14752813]
[1646554952561,0.00023536,39348.0,39342.0,0.14752813]
[1646554953608,0.19262013,39349.0,39342.0,0.14752813]
[1646554953813,0.00023537,39347.0,39343.0,0.382184]
[1646554954009,0.00023537,39347.0,39344.0,0.3]
[1646554954208,0.00023537,39347.0,39345.0,0.382165]
[1646554954407,0.00023537,39347.0,39344.0,0.3]
[1646554954607,0.00023537,39347.0,39345.0,0.382164]
[1646554954807,0.18091599,39351.0,39344.0,0.3]
[1646554955009,0.0002267,39347.0,39345.0,0.20039779]
[1646554955207,0.0002267,39347.0,39342.0,0.14752813]
[1646554956008,0.005,39349.0,39342.0,0.14752813]
[1646554956208,0.0002267,39347.0,39342.0,0.14752813]
[1646554956409,0.0002267,39347.0,39343.0,0.382186]
[1646554956657,0.0002267,39347.0,39342.0,0.30596229]
[1646554956857,0.0002267,39347.0,39343.0,0.382186]
[1646554957057,0.0002267,39347.0,39342.0,0.30596229]
[1646554957259,0.43960803,39351.0,39343.0,0.382186]
[1646554957461,0.0002267,39347.0,39342.0,0.30596229]
[1646554958260,0.0002267,39347.0,39342.0,0.26755638]
[1646554958460,0.43960803,39351.0,39343.0,0.382186]
[1646554958662,0.00021932,39347.0,39342.0,0.26755638]
[1646554958862,0.00021932,39347.0,39343.0,0.382183]
[1646554959661,0.25869204,39351.0,39342.0,0.56755638]
[1646554959862,0.25869204,39351.0,39348.0,0.20004449]
[1646554960517,0.25869204,39352.0,39348.0,0.20004449]
[1646554960914,0.16017801,39350.0,39348.0,0.20004449]
[1646554961118,0.3672159,39350.0,39348.0,0.20004449]
[1646554961317,0.3672159,39350.0,39344.0,0.15783834]
[1646554962117,0.16158544,39349.0,39344.0,0.15783834]
[1646554962316,0.16180508,39349.0,39344.0,0.15783834]
[1646554963221,0.16158544,39349.0,39344.0,0.15783834]
[1646554963420,0.00010671,39348.0,39344.0,0.15783834]
[1646554964266,0.00010671,39348.0,39345.0,0.382163]
[1646554964468,0.16158544,39349.0,39344.0,0.15783834]
[1646554964665,0.00010671,39348.0,39345.0,0.382163]
[1646554964866,0.00010671,39348.0,39344.0,0.15783834]
[1646554965665,0.16158544,39349.0,39344.0,0.15783834]
[1646554965869,0.00023542,39348.0,39344.0,0.15783834]
[1646554966867,0.16158544,39349.0,39344.0,0.15783834]
[1646554967066,0.00023542,39348.0,39344.0,0.15783834]
[1646554967914,0.36862333,39349.0,39344.0,0.382174]
[1646554968114,0.00023542,39348.0,39343.0,0.3]
[1646554968320,0.00023542,39348.0,39342.0,0.10912222]
[1646554969116,0.36862333,39349.0,39342.0,0.10912222]
[1646554969517,0.00023542,39347.0,39342.0,0.10912222]
[1646554969716,0.00023542,39347.0,39343.0,0.382186]
[1646554969917,0.00023542,39347.0,39342.0,0.10912222]
[1646554970118,0.00023542,39347.0,39343.0,0.382186]
[1646554970318,0.36862333,39349.0,39342.0,0.10912222]
[1646554970717,0.00022656,39347.0,39342.0,0.10912222]
[1646554971520,0.36862333,39349.0,39342.0,0.10912222]
[1646554971767,0.00022656,39347.0,39342.0,0.10912222]
[1646554972770,0.20703789,39348.0,39342.0,0.10912222]
[1646554973069,0.00022656,39347.0,39342.0,0.10912222]
[1646554973467,0.00022656,39347.0,39342.0,0.10902893]
[1646554974068,0.20703789,39348.0,39342.0,0.10902893]
[1646554974268,0.00021938,39347.0,39342.0,0.10902893]
[1646554974870,0.00021938,39347.0,39342.0,0.40902893]
[1646554975271,0.16158544,39349.0,39342.0,0.40902893]
[1646554975514,0.00021938,39347.0,39342.0,0.40902893]
[1646554975918,0.00021938,39347.0,39343.0,0.382186]
[1646554976114,0.00021938,39347.0,39344.0,0.382176]
[1646554976317,0.36862333,39349.0,39342.0,0.40902893]
[1646554976815,0.00021938,39347.0,39343.0,0.382185]
[1646554977414,0.00021938,39347.0,39344.0,0.382176]
[1646554977614,0.20428401,39346.0,39342.0,0.40902893]
[1646554977817,0.0002197,39347.0,39342.0,0.10902893]
[1646554978819,0.20662391,39348.0,39342.0,0.10902893]
[1646554979017,0.0002197,39347.0,39342.0,0.10902893]
[1646554980061,0.20662391,39348.0,39342.0,0.10902893]
[1646554980262,0.0002197,39347.0,39342.0,0.10902893]
[1646554980462,0.0002197,39347.0,39343.0,0.382186]
[1646554980663,0.0002197,39347.0,39342.0,0.10902893]
[1646554981265,0.36862333,39349.0,39343.0,0.382186]
[1646554981467,0.00021967,39347.0,39342.0,0.40902893]
[1646554981763,0.00021967,39347.0,39343.0,0.382184]
[1646554982364,0.36862333,39349.0,39342.0,0.40902893]
[1646554982564,0.00021968,39347.0,39342.0,0.40902893]
[1646554982765,0.00021968,39347.0,39343.0,0.382184]
[1646554983633,0.36862333,39349.0,39342.0,0.40902893]
[1646554983833,0.00021968,39347.0,39343.0,0.382185]
[1646554984835,0.00021968,39347.0,39342.0,0.40902893]
[1646554984836,0.58033715,39349.0,39342.0,0.40902893]
[1646554985036,0.00021968,39347.0,39343.0,0.382184]
[1646554986036,0.20703789,39348.0,39344.0,0.3]
[1646554986237,0.00021968,39347.0,39344.0,0.3]
[1646554987271,0.20703789,39348.0,39345.0,0.382163]
[1646554987469,0.00021968,39347.0,39345.0,0.382163]
[1646554988472,0.20703789,39348.0,39345.0,0.382163]
[1646554988672,0.20725756,39348.0,39345.0,0.382163]
[1646554988873,0.20725756,39348.0,39344.0,0.49247857]
[1646554989276,0.20225756,39348.0,39344.0,0.49247857]
[1646554989672,0.20203789,39348.0,39344.0,0.19247857]
[1646554989874,0.20225756,39348.0,39344.0,0.19247857]
[1646554990073,0.20225756,39348.0,39345.0,0.382164]
[1646554990274,0.20225756,39348.0,39344.0,0.19247857]
[1646554990719,0.20203789,39348.0,39344.0,0.19247857]
[1646554990920,0.20203789,39348.0,39345.0,0.382163]
[1646554991119,0.20225756,39348.0,39345.0,0.382163]
[1646554991320,0.20225756,39348.0,39342.0,0.40902893]
[1646554991520,0.20225756,39348.0,39343.0,0.382183]
[1646554991720,0.20225756,39348.0,39344.0,0.3]
[1646554991924,0.20203789,39348.0,39344.0,0.3]
[1646554992122,0.20203789,39348.0,39345.0,0.382163]
[1646554992325,0.00021968,39347.0,39346.0,0.682153]
[1646554992727,0.49485886,39356.0,39346.0,0.682153]
[1646554992728,0.15310126,39353.0,39347.0,0.7]
[1646554992926,0.01269,39360.0,39347.0,0.7]
[1646554992927,0.36216886,39359.0,39348.0,0.682128]
[1646554993127,0.36216886,39363.0,39348.0,0.9193918]
[1646554993326,0.1169,39364.0,39356.0,0.15701527]
[1646554993524,0.1169,39364.0,39356.0,0.24909527]
[1646554994368,0.1169,39364.0,39357.0,0.382024]
[1646554994672,0.1169,39364.0,39358.0,0.682013]
[1646554994863,0.17430109,39365.0,39358.0,0.682013]
[1646554995461,0.22348,39368.0,39358.0,0.682013]
[1646554995664,0.22348,39368.0,39355.0,0.153584]
[1646554995665,0.02538,39362.0,39350.0,0.0509]
[1646554995870,0.02538,39362.0,39342.0,0.10902893]
[1646554995871,0.02538,39356.0,39342.0,0.10902893]
[1646554996065,0.66108,39354.0,39342.0,0.10902893]
[1646554996264,0.6357,39346.0,39339.0,0.00012896]
[1646554996469,0.707634,39345.0,39339.0,0.00012896]
[1646554996667,0.6357,39340.0,39339.0,0.00012896]
[1646554996864,1.34369951,39340.0,39337.0,0.2]
[1646554997064,1.34369951,39340.0,39324.0,0.3647388]
[1646554997065,0.02538,39337.0,39324.0,0.3647388]
[1646554997267,0.0509,39336.0,39334.0,0.00094197]
[1646554997464,0.382254,39335.0,39334.0,0.00094197]
[1646554997667,0.77466432,39335.0,39334.0,0.00094197]
[1646554997914,0.86537432,39335.0,39334.0,0.00094197]
[1646554998114,0.86537432,39335.0,39326.0,0.19739631]
[1646554998115,0.02538,39334.0,39323.0,0.3647388]
[1646554998325,0.3,39334.0,39333.0,0.00023548]
[1646554998517,0.64206618,39334.0,39333.0,0.00023548]
[1646554998719,0.55981218,39334.0,39333.0,0.00023548]
[1646554999318,0.58519218,39334.0,39329.0,0.2082914]
[1646554999622,0.55981218,39334.0,39332.0,0.00023548]
[1646555000017,0.3,39333.0,39332.0,0.00023548]
[1646555000219,0.3509,39333.0,39332.0,0.00023548]
[1646555000419,0.3509,39333.0,39329.0,0.2082914]
[1646555000620,0.3509,39333.0,39331.0,0.00022681]
[1646555000819,0.0509,39333.0,39331.0,0.00022681]
[1646555001775,0.0509,39333.0,39328.0,0.2092914]
[1646555001776,0.0509,39333.0,39330.0,0.00022681]
[1646555002382,0.3,39332.0,39330.0,0.00022681]
[1646555002579,0.0509,39331.0,39330.0,0.00022681]
[1646555002785,0.02538,39327.0,39318.0,0.0021]
[1646555002984,0.02538,39327.0,39316.0,0.0031]
[1646555002985,0.7746,39324.0,39316.0,0.0031]
[1646555003181,0.79998,39322.0,39316.0,0.0031]
[1646555003382,0.66144551,39318.0,39316.0,0.0031]
[1646555003583,1.34369951,39318.0,39316.0,0.0031]
[1646555003881,1.39459951,39318.0,39316.0,0.0031]
[1646555004282,1.39459951,39318.0,39313.0,0.0011]
[1646555004483,0.40799951,39314.0,39313.0,0.0011]
[1646555004682,1.46670951,39314.0,39313.0,0.0011]
[1646555005282,1.68092454,39314.0,39313.0,0.0011]
[1646555008327,1.68092454,39314.0,39303.0,0.0011]
[1646555008328,0.02538,39311.0,39303.0,0.0011]
[1646555008521,0.05112551,39307.0,39303.0,0.0011]
[1646555008719,0.382254,39308.0,39303.0,0.0011]
[1646555008720,1.04369951,39304.0,39303.0,0.0011]
[1646555008919,1.09459951,39304.0,39303.0,0.0011]
[1646555009167,1.39459951,39304.0,39303.0,0.0011]
[1646555009365,1.79198706,39304.0,39303.0,0.0011]
[1646555009574,3.81658706,39304.0,39303.0,0.0011]
[1646555009766,6.39670841,39304.0,39303.0,0.0011]
[1646555009967,6.39670841,39304.0,39291.0,0.0021]
[1646555009968,0.382254,39300.0,39249.0,0.00053194]
[1646555010172,0.382254,39300.0,39229.0,0.001142]
[1646555010173,0.15,39259.0,39239.0,0.36447777]
[1646555010367,0.15,39259.0,39231.0,0.45408564]
[1646555010368,0.382254,39244.0,39231.0,0.36447777]
[1646555010570,0.02574551,39240.0,39224.0,2.43467822]
[1646555010767,0.18518728,39227.0,39225.0,0.15446998]
[1646555010970,0.18518728,39227.0,39224.0,2.32467822]
[1646555010971,0.301389,39225.0,39224.0,2.32467822]
[1646555011173,0.301389,39225.0,39224.0,1.32617822]
[1646555011174,0.05622,39225.0,39224.0,1.32617822]
[1646555011373,0.381521,39227.0,39224.0,0.40193271]
[1646555011567,0.95162452,39226.0,39224.0,0.32767822]
[1646555011777,0.95162452,39226.0,39200.0,0.0001]
[1646555011778,0.01650387,39223.0,39200.0,0.0001]
[1646555011979,0.07179,39213.0,39204.0,0.16622269]
[1646555012176,0.07179,39213.0,39200.0,0.0001]
[1646555012177,0.496415,39212.0,39211.0,0.001143]
[1646555012378,1.33994452,39212.0,39200.0,0.0001]
[1646555012674,0.108995,39217.0,39212.0,0.00027576]
[1646555012921,0.22300041,39226.0,39218.0,0.26176366]
[1646555013117,0.2499,39237.0,39226.0,0.43375343]
[1646555013118,0.01745639,39227.0,39226.0,0.43375343]
[1646555013319,0.4854,39239.0,39226.0,0.43375343]
[1646555013320,0.15,39244.0,39227.0,0.01745]
[1646555013519,0.25036619,39255.0,39249.0,0.05570433]
[1646555013718,0.25036619,39255.0,39228.0,0.75]
[1646555013719,0.15,39252.0,39228.0,0.75]
[1646555013920,0.3,39257.0,39228.0,0.75]
[1646555013921,0.01273,39251.0,39229.0,0.433515]
[1646555014116,0.2499,39261.0,39229.0,0.433515]
[1646555014117,0.15,39255.0,39229.0,0.0509]
[1646555014315,0.2499,39261.0,39229.0,1.0509]
[1646555014316,0.3,39254.0,39229.0,1.0509]
[1646555014518,0.45,39260.0,39230.0,0.645355]
[1646555014719,0.45,39260.0,39245.0,0.07231023]
[1646555014918,0.16720672,39262.0,39242.0,0.6357]
[1646555014919,1.2832156,39244.0,39242.0,0.6357]
[1646555015118,0.16720672,39263.0,39243.0,0.382615]
[1646555015322,0.31273,39270.0,39244.0,1.181945]
[1646555015521,0.4561125,39269.0,39247.0,0.6357]
[1646555015718,0.6061125,39269.0,39254.0,0.16117822]
[1646555015919,0.15,39266.0,39255.0,0.3509]
[1646555016121,0.16716241,39271.0,39255.0,0.3509]
[1646555016122,0.15,39260.0,39255.0,0.0509]
[1646555016321,0.2997241,39265.0,39256.0,0.00023668]
[1646555016322,0.15,39257.0,39256.0,0.00023668]
[1646555016520,0.45,39257.0,39256.0,0.00023668]
[1646555016774,0.00060346,39255.0,39233.0,0.1192]
[1646555016974,0.15,39245.0,39237.0,0.19077555]
[1646555017372,0.15,39245.0,39233.0,0.30458806]
[1646555017775,0.2097601,39247.0,39239.0,0.19311524]
[1646555018172,0.2097601,39247.0,39240.0,7.57e-05]
[1646555018374,0.00060346,39255.0,39246.0,1.05]
[1646555018578,0.00060346,39255.0,39247.0,0.3]
[1646555019376,0.00060346,39255.0,39246.0,1.05]
[1646555019576,0.04,39261.0,39241.0,0.17796544]
[1646555019774,0.002,39256.0,39242.0,0.3]
[1646555019982,0.02738,39256.0,39241.0,0.002]
[1646555020176,0.01273,39255.0,39241.0,0.002]
[1646555020445,0.79998,39253.0,39241.0,0.002]
[1646555020647,0.81271,39253.0,39241.0,0.002]
[1646555020845,0.02538,39252.0,39241.0,0.0001]
[1646555021046,0.02538,39250.0,39245.0,0.00023553]
[1646555021250,0.00047105,39244.0,39233.0,0.08581446]
[1646555021745,0.00047105,39244.0,39234.0,0.32158392]
[1646555021947,0.02503,39239.0,39234.0,0.32158392]
[1646555022150,0.00047105,39244.0,39238.0,0.21399294]
[1646555022151,1.05e-06,39244.0,39238.0,0.21399294]
[1646555022346,1.05e-06,39244.0,39243.0,0.15]
[1646555022547,1.05e-06,39244.0,39243.0,0.8528447]
[1646555022748,1.05e-06,39256.0,39244.0,1.207215]
[1646555022950,0.66055,39267.0,39255.0,0.532615]
[1646555022951,0.16055,39267.0,39255.0,0.532615]
[1646555023151,0.02538,39274.0,39257.0,0.17562964]
[1646555023358,0.3202297,39260.0,39256.0,0.0509]
[1646555023548,0.3202297,39260.0,39244.0,0.05]
[1646555023549,0.02538,39259.0,39254.0,0.006]
[1646555024370,0.3202297,39260.0,39231.0,0.2688]
[1646555024371,0.67538,39256.0,39231.0,0.2688]
[1646555024568,0.02538,39254.0,39241.0,0.20492935]
[1646555025370,0.02538,39250.0,39243.0,0.2098827]
[1646555025572,0.02538,39250.0,39241.0,0.20492935]
[1646555025775,0.02538,39250.0,39236.0,0.001]
[1646555025973,0.00023551,39249.0,39236.0,0.00123559]
[1646555026571,0.02538,39247.0,39240.0,0.20621069]
[1646555026771,0.02538,39247.0,39240.0,0.40393686]
[1646555027171,0.00023552,39244.0,39240.0,0.40393686]
[1646555027571,0.00023552,39244.0,39240.0,0.19772617]
[1646555028016,0.02538,39248.0,39240.0,0.19772617]
[1646555028211,0.02538,39250.0,39240.0,0.19772617]
[1646555028416,0.00023552,39244.0,39241.0,0.1803065]
[1646555028616,0.00023552,39244.0,39241.0,0.37373399]
[1646555028812,5.52e-06,39244.0,39241.0,0.1803065]
[1646555029017,5.52e-06,39244.0,39243.0,0.15]
[1646555029213,5.52e-06,39244.0,39243.0,0.682615]
[1646555029414,0.3202297,39260.0,39243.0,0.3469]
[1646555029616,0.04,39261.0,39246.0,0.15]
[1646555029816,0.04,39261.0,39256.0,0.1736291]
[1646555030015,0.3472582,39249.0,39248.0,0.73877685]
[1646555030215,0.3472582,39249.0,39248.0,0.92819492]
[1646555030417,0.04,39261.0,39257.0,0.06102145]
[1646555030616,0.04,39261.0,39260.0,0.19728728]
[1646555030821,0.032,39261.0,39260.0,0.62680228]
[1646555031023,0.02801917,39288.0,39268.0,0.05277931]
[1646555031217,0.02801917,39288.0,39261.0,1.05]
[1646555031218,0.10555862,39267.0,39265.0,0.06245848]
[1646555031418,0.10555862,39267.0,39266.0,0.20317582]
[1646555031870,0.10555862,39267.0,39266.0,0.58579082]
[1646555032062,0.10555862,39267.0,39266.0,0.36235951]
[1646555032665,0.10555862,39267.0,39266.0,0.0469]
[1646555033467,0.42385004,39267.0,39266.0,0.0469]
[1646555033671,0.31396673,39267.0,39260.0,0.001]
[1646555033868,0.31829142,39266.0,39260.0,0.001]
[1646555034068,0.34367142,39266.0,39260.0,0.001]
[1646555034668,0.02538,39265.0,39260.0,0.001]
[1646555034866,0.15426959,39262.0,39260.0,0.001]
[1646555035067,0.15426959,39262.0,39255.0,0.19923508]
[1646555035527,0.15426959,39262.0,39253.0,0.20046707]
[1646555035932,0.15426959,39262.0,39247.0,0.1]
[1646555036128,0.31829142,39261.0,39246.0,0.4678]
[1646555036332,0.31829142,39261.0,39241.0,0.1172]
[1646555036528,0.16980411,39255.0,39241.0,0.1172]
[1646555036727,0.31829142,39254.0,39241.0,0.1172]
[1646555036928,0.00021855,39255.0,39250.0,0.19287389]
[1646555037131,0.00021855,39255.0,39251.0,0.382615]
[1646555037928,0.31829142,39266.0,39257.0,0.18389971]
[1646555038727,0.15555862,39267.0,39250.0,0.31829142]
[1646555038931,0.25729967,39266.0,39251.0,0.0469]
[1646555039183,0.00020723,39263.0,39252.0,0.31829142]
[1646555039370,0.00020723,39263.0,39251.0,0.0469]
[1646555039569,0.00020723,39263.0,39254.0,0.20255584]
[1646555039570,0.19970893,39260.0,39254.0,0.20255584]
[1646555039770,0.00020723,39263.0,39251.0,0.2440961]
[1646555039969,0.00020723,39263.0,39251.0,0.0469]
[1646555040171,0.25715753,39266.0,39249.0,0.06322748]
[1646555040172,0.02538,39265.0,39249.0,0.06322748]
[1646555040372,0.02538,39265.0,39247.0,0.001]
[1646555040373,0.00020724,39259.0,39247.0,0.001]
[1646555040972,0.00020724,39259.0,39250.0,0.20163087]
[1646555041371,0.21233647,39261.0,39250.0,0.20163087]
[1646555041575,0.00020378,39256.0,39250.0,0.27313087]
[1646555042377,0.00020378,39256.0,39251.0,0.382615]
[1646555042576,0.10555862,39267.0,39252.0,0.18630796]
[1646555042776,0.10555862,39267.0,39263.0,0.19303152]
[1646555043017,0.10555862,39267.0,39253.0,0.05963]
[1646555043217,0.10555862,39267.0,39254.0,0.382615]
[1646555043415,0.10555862,39267.0,39255.0,0.05963]
[1646555043616,0.10555862,39267.0,39259.0,0.07173619]
[1646555043818,0.10555862,39267.0,39260.0,0.429515]
[1646555044017,0.31829142,39266.0,39260.0,0.429515]
[1646555044223,0.071755,39265.0,39250.0,0.003]
[1646555044417,0.10555862,39267.0,39251.0,0.21126642]
[1646555044418,0.071755,39263.0,39251.0,0.21126642]
[1646555044616,0.071755,39261.0,39251.0,0.21126642]
[1646555044818,0.39004642,39261.0,39251.0,0.21126642]
[1646555045017,0.071755,39261.0,39251.0,0.21126642]
[1646555045615,0.39004642,39261.0,39251.0,0.21126642]